{"text_format":"3","workbook":"xlsx","n_sheets":4,"sheets":["Форма предложения","Данные диаграммы","Распределение затрат","Сводка затрат по предложению"],"not_rendered":{"charts":1,"images":2,"defined_names":11},"read":"whole","date_system":"1900"}

{"sheet":"Форма предложения","index":0,"n_rows":21,"n_cols":6,"rows_kept":21,"merged":[[0,1,0,4],[1,1,1,2],[7,1,8,1],[7,2,8,2],[10,1,10,5],[12,1,12,5],[14,1,14,5],[15,1,15,2],[15,4,15,5],[16,1,16,2],[16,4,16,5],[18,1,18,5],[19,1,19,2],[19,4,19,5],[20,1,20,2],[20,4,20,5]]}
[null,"Форма для предложений на строительство"]
[null,"Сведения о владельце",null,null,"Сведения о подрядчике"]
[null,"Имя","Введите имя владельца в этой ячейке",null,"Компания","Введите название компании-подрядчика в этой ячейке"]
[null,"Адрес","Введите адрес владельца в этой ячейке",null,"Имя","Введите имя подрядчика в этой ячейке"]
[null,"Город, регион, почтовый индекс","Введите город, регион и почтовый индекс владельца в этой ячейке",null,"Адрес","Введите адрес подрядчика в этой ячейке"]
[null,"Телефон","Введите номер телефона владельца в этой ячейке",null,"Город, регион, почтовый индекс","Введите город, регион и почтовый индекс подрядчика в этой ячейке"]
[null,"Эл. почта","Введите адрес электронной почты владельца в этой ячейке",null,"Телефон","Введите номер телефона подрядчика в этой ячейке"]
[null,"Название проекта","Введите название проекта в этой ячейке",null,"Эл. почта","Введите адрес электронной почты подрядчика в этой ячейке "]
[{"$nulls":4},"Дата завершения","Введите дату завершения в этой ячейке"]
[null,"Объем работ"]
[null,"В этом разделе описывается объем работ. Укажите все необходимые характеристики. \n\nПример текста: Это фиктивный проект строительства большого комплекса лестниц. Для сооружения стропил мы используем только пиломатериалы сортаментом 2x4 и 2x8, а также балочные подкосы. Лестницы будут изготовлены из пиломатериалов 2x4 с использованием винтов длиной не менее 50 мм.  Размер гвоздей — не меньше 10d. Каждая ступенька должна выдерживать расчетный вес не менее 230 кг. Все ступеньки в доме должны удовлетворять этому требованию. К дому будет прикреплена площадка для обслуживания оборудования. Подрядчик должен обеспечить чистоту."]
[null,"Не включено"]
[null,"Здесь можно разместить неуказанные сведения о проекте. Введите любую информацию, не включенную в предложение. \n\nПример текста: Перила устанавливаться не будут. Площадку должен подготовить владелец. Покраска лестниц будет выполнена владельцем."]
[null,"Предложение компании"]
[null,"Здесь размещается предложение компании. Укажите общие сведения о предложении, в том числе предлагающую выполнение работ компанию, планируемую дату завершения и стоимость предложения.\n\nПример текста: Название компании предлагает завершить выполнение указанного выше объема работ к Дата завершения при затратах в сумме Общая сумма."]
[]
[null,"От (представитель компании)",null,null,"Дата"]
[null,"Принятие предложения владельцем"]
[null,"Здесь размещается заявление о принятии предложения владельцем. Введите имя владельца в подтверждающем заявлении, содержащем дату завершения и общую стоимость, указанные в предложении компании. \n\nПример текста: Я, имя владельца, принимаю предложение завершить выполнение указанного выше объема работ к Дата завершения при затратах в сумме Общая сумма."]
[]
[null,"От (владелец дома или его уполномоченный представитель)",null,null,"Дата"]

{"sheet":"Данные диаграммы","index":1,"n_rows":7,"n_cols":3,"rows_kept":7,"hidden":true}
[]
[null,null,"Итог"]
[null,{"$f":"INDEX(BidItems[#Data],MATCH(1,BidItems[Приоритет затрат],0),2)","v":"Расходы на разнорабочего"},{"$f":"INDEX(BidItems[#Data],MATCH(1,BidItems[Приоритет затрат],0),4)","v":200}]
[null,{"$f":"INDEX(BidItems[#Data],MATCH(2,BidItems[Приоритет затрат],0),2)","v":"Пиломатериалы 2x4x10"},{"$f":"INDEX(BidItems[#Data],MATCH(2,BidItems[Приоритет затрат],0),4)","v":99.39999999999999}]
[null,{"$f":"INDEX(BidItems[#Data],MATCH(3,BidItems[Приоритет затрат],0),2)","v":"Балочные подкосы"},{"$f":"INDEX(BidItems[#Data],MATCH(3,BidItems[Приоритет затрат],0),4)","v":74.7}]
[null,{"$f":"INDEX(BidItems[#Data],MATCH(4,BidItems[Приоритет затрат],0),2)","v":"Пиломатериалы 2x8x10"},{"$f":"INDEX(BidItems[#Data],MATCH(4,BidItems[Приоритет затрат],0),4)","v":33.75}]
[null,{"$f":"INDEX(BidItems[#Data],MATCH(5,BidItems[Приоритет затрат],0),2)","v":"Пара кожаных перчаток"},{"$f":"INDEX(BidItems[#Data],MATCH(5,BidItems[Приоритет затрат],0),4)","v":15.5}]

{"sheet":"Распределение затрат","index":2,"n_rows":14,"n_cols":6,"rows_kept":14,"merged":[[0,1,0,4],[1,1,1,4]]}
[null,"Распределение затрат",{"$nulls":3}," "]
[null,"Список материалов и затрат"]
[null,"Кол-во","Описание","Стоимость","Итог","Приоритет затрат"]
[null,5,"Пиломатериалы 2x8x10",{"v":6.75,"d":"6.75 ₽"},{"$f":"IFERROR(BidItems[[#This Row],[Стоимость]]*BidItems[[#This Row],[Кол-во]], \"\")","v":{"v":33.75,"d":"33.75 ₽"}},{"$f":"_xlfn.RANK.EQ(BidItems[[#This Row],[Итог]],BidItems[Итог])","v":4}]
[null,20,"Пиломатериалы 2x4x10",{"v":4.97,"d":"4.97 ₽"},{"$f":"IFERROR(BidItems[[#This Row],[Стоимость]]*BidItems[[#This Row],[Кол-во]], \"\")","v":{"v":99.39999999999999,"d":"99.40 ₽"}},{"$f":"_xlfn.RANK.EQ(BidItems[[#This Row],[Итог]],BidItems[Итог])","v":2}]
[null,30,"Балочные подкосы",{"v":2.49,"d":"2.49 ₽"},{"$f":"IFERROR(BidItems[[#This Row],[Стоимость]]*BidItems[[#This Row],[Кол-во]], \"\")","v":{"v":74.7,"d":"74.70 ₽"}},{"$f":"_xlfn.RANK.EQ(BidItems[[#This Row],[Итог]],BidItems[Итог])","v":3}]
[null,2,"Коробка с винтами 50 мм",{"v":6.67,"d":"6.67 ₽"},{"$f":"IFERROR(BidItems[[#This Row],[Стоимость]]*BidItems[[#This Row],[Кол-во]], \"\")","v":{"v":13.34,"d":"13.34 ₽"}},{"$f":"_xlfn.RANK.EQ(BidItems[[#This Row],[Итог]],BidItems[Итог])","v":6}]
[null,2,"Коробка гвоздей 10d",{"v":3.25,"d":"3.25 ₽"},{"$f":"IFERROR(BidItems[[#This Row],[Стоимость]]*BidItems[[#This Row],[Кол-во]], \"\")","v":{"v":6.5,"d":"6.50 ₽"}},{"$f":"_xlfn.RANK.EQ(BidItems[[#This Row],[Итог]],BidItems[Итог])","v":7}]
[null,2,"Пара кожаных перчаток",{"v":7.75,"d":"7.75 ₽"},{"$f":"IFERROR(BidItems[[#This Row],[Стоимость]]*BidItems[[#This Row],[Кол-во]], \"\")","v":{"v":15.5,"d":"15.50 ₽"}},{"$f":"_xlfn.RANK.EQ(BidItems[[#This Row],[Итог]],BidItems[Итог])","v":5}]
[null,2,"Расходы на разнорабочего",{"v":100,"d":"100.00 ₽"},{"$f":"IFERROR(BidItems[[#This Row],[Стоимость]]*BidItems[[#This Row],[Кол-во]], \"\")","v":{"v":200,"d":"200.00 ₽"}},{"$f":"_xlfn.RANK.EQ(BidItems[[#This Row],[Итог]],BidItems[Итог])","v":1}]
[4,null,null,"Промежуточный итог",{"$f":"SUBTOTAL(109,BidItems[Итог])","v":{"v":443.18999999999994,"d":"443.19 ₽"}}]
[5,null,null,"Ставка налога",{"v":0.075,"d":"7.50%"}]
[{"$nulls":3},"Налог",{"$f":"IFERROR(Ставканалога*BidItems[[#Totals],[Итог]], \"\")","v":{"v":33.23924999999999,"d":"33.24 ₽"}}]
[{"$nulls":3},"Общий итог",{"$f":"IFERROR(Налог+BidItems[[#Totals],[Итог]], \"\")","v":{"v":476.4292499999999,"d":"476.43 ₽"}}]

{"sheet":"Сводка затрат по предложению","index":3,"n_rows":3,"n_cols":4,"rows_kept":3}
[null,"Сводка затрат по предложению"]
[null,"Распределение материалов и затрат",null,"Примечания"]
[null,"Круговая диаграмма с 5 самыми большими суммами затрат на материалы Данные основаны на таблице пунктов предложения на листе \"Распределение затрат\"",null,"Введите примечания в этой ячейке."]